[Event "55th Rubinstein Memorial-C 2019"]
[Site "Polanica-Zdroj"]
[Date "2019.08.24"]
[Round "8.2"]
[White "Kaliszuk, Kamil"]
[Black "Kardys, Zbigniew"]
[Result "1/2-1/2"]
[ECO "B80"]
[WhiteElo "1853"]
[BlackElo "1949"]
[Annotator "NA"]
[PlyCount "105"]
[EventDate "2019.08.17"]
[EventType "swiss"]
[EventCountry "POL"]
[SourceTitle "playchess.com"]
[Source "ChessBase"]
[SourceQuality "1"]
[TimeControl "40/5400+30:1800+30"]

1. e4 {[%emt 0:00:00]} c5 {[%emt 0:00:00]} 2. Nf3 {[%emt 0:00:00]} Nf6 {[%emt 0:02:57]} 3. Nc3 {[%emt 0:11:55]} d6 {[%emt 0:03:04]} 4. d4 {[%emt 0:00:32]} cxd4 {[%emt 0:00:02]} 5. Nxd4 {[%emt 0:00:01]} e6 {[%emt 0:01:37]} 6. g3 {[%emt 0:00:49]} a6 {[%emt 0:04:56]} 7. Bg2 {[%emt 0:00:35]} Qc7 {[%emt 0:00:02]} 8. O-O {[%emt 0:00:31]} Be7 {[%emt 0:00:27]} 9. Be3 {[%emt 0:00:29]} O-O {[%emt 0:00:37]} 10. Nb3 {[%emt 0:03:14]} Bd7 {[%emt 0:05:39]} 11. f4 {[%emt 0:00:32]} Bc6 $14 {[%emt 0:06:06]} 12. g4 {[%emt 0:01:11]} h6 {[%emt 0:03:32]} 13. g5 {[%emt 0:26:24]} hxg5 {[%emt 0:07:13]} 14. fxg5 {[%emt 0:00:23]} Nh7 {[%emt 0:00:23]} 15. Qh5 {[%emt 0:06:28]} g6 {[%emt 0:07:34]} 16. Qh6 {[%emt 0:14:21]} Qd8 {[%emt 0:06:26]} 17. h4 {[%emt 0:01:05]} Nd7 {[%emt 0:07:38]} 18. Bd4 {[%emt 0:08:23]} Ne5 {[%emt 0:01:18]} 19. Nc5 {[%emt 0:01:13]} Bxg5 {[%emt 0:19:26]} 20. hxg5 {[%emt 0:00:18]} Qxg5 {[%emt 0:00:35]} 21. Qxg5 {[%emt 0:00:08]} Nxg5 {[%emt 0:00:01]} 22. Bxe5 {[%emt 0:11:27]} dxe5 {[%emt 0:00:03]} 23. Rad1 {[%emt 0:00:22]} Rad8 {[%emt 0:00:35]} 24. Rxd8 {[%emt 0:00:48]} Rxd8 {[%emt 0:00:03]} 25. Rd1 {[%emt 0:00:16]} Rd4 {[%emt 0:07:14]} 26. Kf2 {[%emt 0:03:49]} Rc4 {[%emt 0:00:52]} 27. Nd7 {[%emt 0:00:48]} Rb4 {[%emt 0:04:44]} 28. b3 {[%emt 0:01:10]} Rd4 {[%emt 0:03:23]} 29. Nxe5 {[%emt 0:04:16]} Rxd1 {[%emt 0:01:20]} 30. Nxd1 {[%emt 0:00:02]} Bxe4 {[%emt 0:00:23]} 31. Bxe4 {[%emt 0:00:19]} Nxe4+ {[%emt 0:00:01]} 32. Ke3 {[%emt 0:00:02]} Nd6 {[%emt 0:00:39]} 33. Nc3 {[%emt 0:01:27]} g5 {[%emt 0:01:44]} 34. Ne4 {[%emt 0:00:59]} Nxe4 {[%emt 0:01:52]} 35. Kxe4 {[%emt 0:00:03]} f5+ {[%emt 0:00:14]} 36. Kf3 {[%emt 0:00:14]} Kf8 {[%emt 0:02:10]} 37. Nd7+ {[%emt 0:00:23]} Ke7 {[%emt 0:00:03]} 38. Nc5 {[%emt 0:00:23]} b6 {[%emt 0:00:20]} 39. Nxa6 {[%emt 0:00:45]} Kd6 {[%emt 0:00:04]} 40. Nb4 {[%emt 0:00:25]} e5 {[%emt 0:00:12]} 41. c4 {[%emt 0:30:32]} Kc5 {[%emt 0:30:22]} 42. Nc2 {[%emt 0:00:11]} Kd6 {[%emt 0:01:32]} 43. a4 {[%emt 0:01:05]} Kc5 {[%emt 0:00:34]} 44. Ke3 {[%emt 0:01:01]} g4 {[%emt 0:00:08]} 45. Kd3 {[%emt 0:00:17]} e4+ {[%emt 0:01:23]} 46. Kc3 {[%emt 0:00:42]} g3 {[%emt 0:00:37]} 47. b4+ {[%emt 0:00:06]} Kd6 {[%emt 0:00:26]} 48. Ne1 {[%emt 0:00:50]} f4 {[%emt 0:00:13]} 49. Kd2 {[%emt 0:00:09]} f3 {[%emt 0:00:49]} 50. Nxf3 {[%emt 0:02:00]} exf3 {[%emt 0:00:03]} 51. Ke3 {[%emt 0:00:01]} f2 {[%emt 0:00:21]} 52. Ke2 {[%emt 0:00:06]} Kc6 {[%emt 0:01:15]} 53. Kf1 {[%emt 0:01:06]} 1/2-1/2

[Event "55th Rubinstein Memorial-C 2019"]
[Site "Polanica-Zdroj"]
[Date "2019.08.24"]
[Round "8.3"]
[White "Sypien, Natan"]
[Black "Majek, Kacper"]
[Result "0-1"]
[ECO "D56"]
[WhiteElo "1819"]
[BlackElo "1984"]
[Annotator "NA"]
[PlyCount "100"]
[EventDate "2019.08.17"]
[EventType "swiss"]
[EventCountry "POL"]
[SourceTitle "playchess.com"]
[Source "ChessBase"]
[SourceQuality "1"]
[TimeControl "40/5400+30:1800+30"]

1. d4 {[%emt 0:00:00]} d5 {[%emt 0:00:17]} 2. c4 {[%emt 0:00:00]} e6 {[%emt 0:00:07]} 3. Nc3 {[%emt 0:00:00]} Nf6 {[%emt 0:00:05]} 4. Bg5 {[%emt 0:00:00]} Be7 {[%emt 0:00:31]} 5. e3 {[%emt 0:00:00]} h6 {[%emt 0:00:09]} 6. Bh4 {[%emt 0:00:00]} O-O {[%emt 0:00:24]} 7. Nf3 {[%emt 0:00:00]} Nbd7 {[%emt 0:00:16]} 8. Rc1 {[%emt 0:00:05]} c5 {[%emt 0:00:48]} 9. cxd5 {[%emt 0:01:24]} Nxd5 {[%emt 0:00:16]} 10. Bxe7 {[%emt 0:05:57]} Nxe7 {[%emt 0:00:06]} 11. Be2 {[%emt 0:00:19]} cxd4 {[%emt 0:17:13]} 12. Qxd4 {[%emt 0:00:08]} Nc6 {[%emt 0:04:29]} 13. Qd2 {[%emt 0:06:09]} Qe7 {[%emt 0:01:34]} 14. O-O {[%emt 0:00:34]} Nf6 $11 {[%emt 0:00:16]} 15. Rfd1 {[%emt 0:01:56]} Rd8 {[%emt 0:01:37]} 16. Qc2 {[%emt 0:00:22]} Bd7 {[%emt 0:02:24]} 17. a3 {[%emt 0:09:02]} e5 {[%emt 0:07:18]} 18. b4 {[%emt 0:08:17]} a6 {[%emt 0:10:32]} 19. Na4 {[%emt 0:03:54]} e4 {[%emt 0:00:34]} 20. Nd2 {[%emt 0:05:29]} Rab8 {[%emt 0:13:14]} 21. Nc5 {[%emt 0:09:05]} Bf5 {[%emt 0:00:32]} 22. h3 {[%emt 0:16:11]} Rbc8 {[%emt 0:04:56]} 23. Nc4 {[%emt 0:01:18]} a5 {[%emt 0:01:51]} 24. Nb6 {[%emt 0:09:55]} Rxd1+ {[%emt 0:00:19]} 25. Rxd1 {[%emt 0:00:41]} Rd8 {[%emt 0:00:24]} 26. Rxd8+ {[%emt 0:07:48]} Qxd8 {[%emt 0:01:02]} 27. bxa5 {[%emt 0:00:03]} Nxa5 {[%emt 0:00:39]} 28. Nc4 {[%emt 0:00:56]} Nxc4 {[%emt 0:03:13]} 29. Qxc4 {[%emt 0:00:06]} b6 {[%emt 0:05:22]} 30. Nb3 {[%emt 0:00:57]} Be6 {[%emt 0:00:18]} 31. Qd4 {[%emt 0:00:32]} Qc7 {[%emt 0:00:18]} 32. Qb2 {[%emt 0:01:45]} Nd7 {[%emt 0:06:28]} 33. Nd4 {[%emt 0:03:17]} Nc5 {[%emt 0:00:17]} 34. Qc3 {[%emt 0:02:58]} Qd6 {[%emt 0:01:44]} 35. Nb5 {[%emt 0:01:24]} Qd5 {[%emt 0:00:49]} 36. Qd4 {[%emt 0:01:56]} Qa2 {[%emt 0:00:52]} 37. Qd8+ {[%emt 0:01:50]} Kh7 {[%emt 0:00:01]} 38. Qxb6 {[%emt 0:00:01]} Nd7 {[%emt 0:00:35]} 39. Qd4 {[%emt 0:01:28]} Qxe2 {[%emt 0:00:05]} 40. Qxe4+ {[%emt 0:00:07]} g6 {[%emt 0:00:35]} 41. Nd4 {[%emt 0:30:32]} Qe1+ {[%emt 0:32:49]} 42. Kh2 {[%emt 0:00:01]} Nc5 {[%emt 0:01:19]} 43. Qf3 {[%emt 0:01:27]} Kg7 {[%emt 0:02:01]} 44. g4 {[%emt 0:01:40]} Qa5 {[%emt 0:00:21]} 45. h4 {[%emt 0:00:22]} Qc7+ {[%emt 0:00:23]} 46. Kg1 {[%emt 0:00:40]} Qe5 {[%emt 0:00:35]} 47. h5 {[%emt 0:00:46]} Bd5 {[%emt 0:00:20]} 48. Qh3 {[%emt 0:01:07]} Qe4 {[%emt 0:00:20]} 49. Kh2 {[%emt 0:00:35]} Qh1+ {[%emt 0:00:10]} 50. Kg3 {[%emt 0:00:05]} Ne4+ {[%emt 0:00:05]} 0-1

[Event "55th Rubinstein Memorial-C 2019"]
[Site "Polanica-Zdroj"]
[Date "2019.08.24"]
[Round "8.4"]
[White "Sroka, Janusz"]
[Black "Karnasiewicz, Robert"]
[Result "1-0"]
[ECO "B25"]
[WhiteElo "1875"]
[BlackElo "1803"]
[Annotator "NA"]
[PlyCount "133"]
[EventDate "2019.08.17"]
[EventType "swiss"]
[EventCountry "POL"]
[SourceTitle "playchess.com"]
[Source "ChessBase"]
[SourceQuality "1"]
[TimeControl "40/5400+30:1800+30"]

1. e4 {[%emt 0:00:00]} c5 {[%emt 0:00:00]} 2. Nc3 {[%emt 0:00:30]} Nc6 {[%emt 0:00:30]} 3. g3 {[%emt 0:00:30]} g6 {[%emt 0:00:30]} 4. Bg2 {[%emt 0:00:30]} Bg7 {[%emt 0:00:30]} 5. d3 {[%emt 0:00:30]} d6 {[%emt 0:00:30]} 6. f4 {[%emt 0:00:30]} e6 {[%emt 0:00:30]} 7. Nf3 {[%emt 0:00:30]} Nge7 {[%emt 0:00:31]} 8. O-O {[%emt 0:00:21]} O-O {[%emt 0:00:07]} 9. Be3 {[%emt 0:00:06]} Nd4 {[%emt 0:01:02]} 10. e5 {[%emt 0:00:13]} Nef5 {[%emt 0:01:37]} 11. Bf2 {[%emt 0:00:07]} Nxf3+ {[%emt 0:03:00]} 12. Qxf3 {[%emt 0:00:07]} Nd4 {[%emt 0:00:14]} 13. Qd1 $1 {[%emt 0:00:09]} dxe5 {[%emt 0:00:41]} 14. fxe5 {[%emt 0:00:08]} Bxe5 $11 {[%emt 0:00:26]} 15. Na4 {[%emt 0:00:25]} Qc7 {[%emt 0:33:06]} 16. c3 {[%emt 0:01:11]} Nf5 {[%emt 0:00:13]} 17. Nxc5 {[%emt 0:01:19]} Rb8 {[%emt 0:00:28]} 18. d4 {[%emt 0:00:42]} Bg7 {[%emt 0:00:41]} 19. Nd3 {[%emt 0:09:13]} h5 {[%emt 0:01:02]} 20. Qe2 {[%emt 0:01:19]} b6 {[%emt 0:00:41]} 21. Ne5 {[%emt 0:00:43]} Bb7 {[%emt 0:00:56]} 22. Rfe1 {[%emt 0:14:11]} Bxg2 {[%emt 0:00:38]} 23. Kxg2 {[%emt 0:00:04]} Qb7+ {[%emt 0:05:04]} 24. Qf3 {[%emt 0:06:11]} Qxf3+ {[%emt 0:02:00]} 25. Kxf3 {[%emt 0:00:32]} Rbc8 {[%emt 0:00:25]} 26. h3 {[%emt 0:14:29]} Rfd8 {[%emt 0:05:19]} 27. g4 {[%emt 0:03:10]} hxg4+ {[%emt 0:00:07]} 28. hxg4 {[%emt 0:00:13]} Nd6 {[%emt 0:01:28]} 29. Bh4 {[%emt 0:00:25]} Re8 {[%emt 0:00:37]} 30. Nd7 {[%emt 0:01:25]} f5 {[%emt 0:03:20]} 31. Nf6+ {[%emt 0:15:48]} Bxf6 {[%emt 0:00:05]} 32. Bxf6 {[%emt 0:00:05]} Kf7 {[%emt 0:00:59]} 33. g5 {[%emt 0:00:16]} Ne4 {[%emt 0:00:56]} 34. Rxe4 {[%emt 0:00:13]} fxe4+ {[%emt 0:00:07]} 35. Kxe4 {[%emt 0:00:10]} e5 {[%emt 0:03:25]} 36. Bxe5 {[%emt 0:00:12]} Ke6 {[%emt 0:03:19]} 37. Rh1 {[%emt 0:02:04]} Re7 {[%emt 0:00:38]} 38. Rf1 {[%emt 0:05:44]} Kd7 {[%emt 0:10:50]} 39. Kd5 {[%emt 0:01:03]} Rce8 {[%emt 0:00:37]} 40. a4 {[%emt 0:01:05]} Re6 {[%emt 0:00:29]} 41. b4 {[%emt 0:31:12]} a6 {[%emt 0:30:37]} 42. c4 {[%emt 0:01:29]} R8e7 {[%emt 0:00:42]} 43. c5 {[%emt 0:01:09]} bxc5 {[%emt 0:01:22]} 44. bxc5 {[%emt 0:00:52]} a5 {[%emt 0:03:06]} 45. Rb1 {[%emt 0:00:42]} Ra6 {[%emt 0:00:38]} 46. c6+ {[%emt 0:01:52]} Rxc6 {[%emt 0:06:44]} 47. Rb7+ Kc8 {[%emt 0:00:06]} 48. Rxe7 {[%emt 0:00:23]} Rc1 {[%emt 0:00:04]} 49. Ra7 {[%emt 0:01:07]} Rg1 {[%emt 0:00:21]} 50. Bf6 {[%emt 0:00:08]} Rf1 {[%emt 0:00:13]} 51. Kc6 {[%emt 0:00:52]} Rc1+ {[%emt 0:00:26]} 52. Kd6 {[%emt 0:00:15]} Ra1 {[%emt 0:00:57]} 53. Rxa5 {[%emt 0:00:13]} Kb7 {[%emt 0:00:01]} 54. d5 {[%emt 0:00:59]} Ra2 {[%emt 0:00:31]} 55. Kd7 {[%emt 0:00:52]} Kb6 {[%emt 0:00:12]} 56. Bd8+ {[%emt 0:00:23]} Kb7 {[%emt 0:00:06]} 57. Rb5+ {[%emt 0:00:27]} Ka6 {[%emt 0:00:04]} 58. Rb4 {[%emt 0:01:01]} Rd2 {[%emt 0:00:23]} 59. d6 {[%emt 0:00:17]} Rd1 {[%emt 0:00:08]} 60. Rb6+ {[%emt 0:00:21]} Ka7 {[%emt 0:00:04]} 61. a5 {[%emt 0:03:09]} Rd5 {[%emt 0:00:09]} 62. Rb3 {[%emt 0:00:36]} Rd1 {[%emt 0:00:45]} 63. Bf6 {[%emt 0:00:31]} Rd5 64. Kc6 {[%emt 0:00:42]} Rxa5 {[%emt 0:01:07]} 65. d7 {[%emt 0:00:19]} Ra6+ {[%emt 0:00:10]} 66. Kc5 {[%emt 0:00:13]} Ra5+ {[%emt 0:00:14]} 67. Kc4 {[%emt 0:00:09]} 1-0

[Event "55th Rubinstein Memorial-C 2019"]
[Site "Polanica-Zdroj"]
[Date "2019.08.24"]
[Round "8.5"]
[White "Witkowski, Krzysztof"]
[Black "Pyka, Roman"]
[Result "1/2-1/2"]
[ECO "B01"]
[WhiteElo "1707"]
[BlackElo "1860"]
[Annotator "NA"]
[PlyCount "55"]
[EventDate "2019.08.17"]
[EventType "swiss"]
[EventCountry "POL"]
[SourceTitle "playchess.com"]
[Source "ChessBase"]
[SourceQuality "1"]
[TimeControl "40/5400+30:1800+30"]

1. e4 {[%emt 0:00:00]} d5 {[%emt 0:00:14]} 2. exd5 {[%emt 0:00:00]} Qxd5 {[%emt 0:00:15]} 3. Nc3 {[%emt 0:00:00]} Qd6 {[%emt 0:00:12]} 4. d4 {[%emt 0:00:12]} Nf6 {[%emt 0:00:21]} 5. g3 {[%emt 0:02:18]} Bg4 {[%emt 0:03:55]} 6. Be2 {[%emt 0:08:07]} Bxe2 {[%emt 0:01:45]} 7. Ngxe2 {[%emt 0:03:02]} c6 {[%emt 0:02:48]} 8. Bf4 {[%emt 0:02:33]} Qd8 {[%emt 0:00:43]} 9. Qd3 {[%emt 0:06:06]} e6 $11 {[%emt 0:02:35]} 10. Ne4 {[%emt 0:14:12]} Nxe4 {[%emt 0:06:35]} 11. Qxe4 {[%emt 0:00:35]} Nd7 {[%emt 0:01:10]} 12. O-O {[%emt 0:08:11]} Be7 {[%emt 0:06:47]} 13. c4 {[%emt 0:02:20]} O-O {[%emt 0:01:04]} 14. Rfd1 {[%emt 0:07:09]} Re8 {[%emt 0:01:52]} 15. Nc3 {[%emt 0:03:49]} Qa5 {[%emt 0:06:46]} 16. d5 {[%emt 0:08:43]} exd5 {[%emt 0:02:42]} 17. cxd5 {[%emt 0:00:52]} Nf6 {[%emt 0:05:43]} 18. Qf3 {[%emt 0:00:52]} cxd5 {[%emt 0:07:35]} 19. Nxd5 {[%emt 0:01:21]} Nxd5 {[%emt 0:01:16]} 20. Rxd5 {[%emt 0:00:12]} Qb6 {[%emt 0:03:18]} 21. Rd7 {[%emt 0:07:34]} Qxb2 {[%emt 0:01:56]} 22. Rad1 {[%emt 0:00:20]} Qxa2 {[%emt 0:14:38]} 23. Rxb7 {[%emt 0:04:38]} Bf6 {[%emt 0:10:50]} 24. Be3 {[%emt 0:07:03]} Red8 {[%emt 0:08:13]} 25. Rc1 {[%emt 0:06:57]} Rac8 {[%emt 0:03:52]} 26. Rxc8 {[%emt 0:01:19]} Rxc8 {[%emt 0:00:09]} 27. Rxa7 {[%emt 0:00:27]} Qe6 {[%emt 0:01:34]} 28. Ra8 {[%emt 0:00:55]} 1/2-1/2

[Event "55th Rubinstein Memorial-C 2019"]
[Site "Polanica-Zdroj"]
[Date "2019.08.24"]
[Round "8.6"]
[White "Mike, Patryk"]
[Black "Kolodziejski, Piotr"]
[Result "1-0"]
[ECO "B40"]
[WhiteElo "1840"]
[BlackElo "1701"]
[Annotator "NA"]
[PlyCount "59"]
[EventDate "2019.08.17"]
[EventType "swiss"]
[EventCountry "POL"]
[SourceTitle "playchess.com"]
[Source "ChessBase"]
[SourceQuality "1"]
[TimeControl "40/5400+30:1800+30"]

1. e4 {[%emt 0:00:00]} c5 {[%emt 0:00:00]} 2. Nf3 {[%emt 0:00:04]} e6 {[%emt 0:00:00]} 3. c4 {[%emt 0:00:27]} Nc6 {[%emt 0:00:00]} 4. Nc3 {[%emt 0:00:34]} e5 {[%emt 0:00:41]} 5. d3 {[%emt 0:01:32]} Nf6 {[%emt 0:01:35]} 6. Be2 {[%emt 0:05:28]} d6 {[%emt 0:01:17]} 7. O-O {[%emt 0:03:21]} g6 $11 {[%emt 0:02:41]} 8. Ne1 {[%emt 0:05:42]} Bg7 {[%emt 0:08:51]} 9. f4 {[%emt 0:12:43]} Nd4 {[%emt 0:03:07]} 10. Nc2 {[%emt 0:06:06]} Nxe2+ {[%emt 0:03:30]} 11. Qxe2 {[%emt 0:02:10]} Bg4 {[%emt 0:03:18]} 12. Qf2 {[%emt 0:03:30]} exf4 {[%emt 0:01:18]} 13. Bxf4 {[%emt 0:00:55]} Nh5 {[%emt 0:07:51]} 14. Bd2 {[%emt 0:15:19]} Be6 {[%emt 0:03:03]} 15. Nd5 {[%emt 0:13:39]} O-O {[%emt 0:02:26]} 16. Bc3 {[%emt 0:01:19]} Bxc3 {[%emt 0:02:08]} 17. Nxc3 {[%emt 0:00:53]} Qg5 {[%emt 0:03:59]} 18. Qe3 {[%emt 0:03:07]} Qe5 {[%emt 0:02:58]} 19. Rae1 {[%emt 0:05:34]} Nf6 {[%emt 0:02:21]} 20. Qd2 {[%emt 0:07:45]} Ng4 {[%emt 0:01:59]} 21. g3 {[%emt 0:00:47]} h5 {[%emt 0:01:30]} 22. Ne3 {[%emt 0:01:08]} Qg5 {[%emt 0:04:54]} 23. Rf4 {[%emt 0:02:09]} Ne5 {[%emt 0:03:37]} 24. Ref1 {[%emt 0:01:41]} Kg7 {[%emt 0:04:06]} 25. Ned5 {[%emt 0:01:37]} Bg4 {[%emt 0:01:07]} 26. Rxf7+ {[%emt 0:01:34]} Nxf7 {[%emt 0:06:28]} 27. Rxf7+ {[%emt 0:00:17]} Rxf7 {[%emt 0:00:21]} 28. Qxg5 {[%emt 0:00:08]} Raf8 {[%emt 0:01:31]} 29. Nf4 {[%emt 0:00:24]} Rf6 {[%emt 0:02:41]} 30. Ncd5 {[%emt 0:00:19]} 1-0

[Event "55th Rubinstein Memorial-C 2019"]
[Site "Polanica-Zdroj"]
[Date "2019.08.24"]
[Round "8.7"]
[White "Andrushchiak, Maxim"]
[Black "Zalega, Maciej"]
[Result "1-0"]
[ECO "A45"]
[WhiteElo "1826"]
[BlackElo "1429"]
[Annotator "NA"]
[PlyCount "120"]
[EventDate "2019.08.17"]
[EventType "swiss"]
[EventCountry "POL"]
[SourceTitle "playchess.com"]
[Source "ChessBase"]
[SourceQuality "1"]
[TimeControl "40/5400+30:1800+30"]

1. d4 {[%emt 0:00:00]} Nf6 {[%emt 0:00:00]} 2. Nc3 {[%emt 0:00:00]} d5 {[%emt 0:00:00]} 3. Bf4 {[%emt 0:00:22]} c6 {[%emt 0:00:31]} 4. e3 {[%emt 0:00:33]} g6 {[%emt 0:00:07]} 5. Nf3 {[%emt 0:03:20]} Bg7 {[%emt 0:02:06]} 6. Be2 {[%emt 0:00:12]} Bg4 {[%emt 0:07:18]} 7. h3 {[%emt 0:05:29]} Bxf3 {[%emt 0:01:18]} 8. Bxf3 {[%emt 0:00:09]} Nbd7 {[%emt 0:01:32]} 9. h4 {[%emt 0:04:32]} h5 {[%emt 0:01:41]} 10. Qd2 {[%emt 0:00:38]} b5 {[%emt 0:03:04]} 11. O-O {[%emt 0:05:45]} Nb6 {[%emt 0:03:29]} 12. b3 {[%emt 0:00:25]} O-O {[%emt 0:15:36]} 13. Rad1 {[%emt 0:01:06]} e6 {[%emt 0:08:24]} 14. Rfe1 {[%emt 0:01:32]} Nh7 {[%emt 0:07:51]} 15. g3 {[%emt 0:06:12]} f5 {[%emt 0:04:26]} 16. Ne2 {[%emt 0:02:51]} Qe7 {[%emt 0:07:35]} 17. Kg2 {[%emt 0:11:06]} Nd7 {[%emt 0:03:18]} 18. c4 {[%emt 0:03:24]} Qa3 {[%emt 0:13:18]} 19. cxb5 {[%emt 0:05:56]} cxb5 {[%emt 0:00:17]} 20. Rc1 {[%emt 0:00:18]} Rfc8 {[%emt 0:01:24]} 21. Rc2 {[%emt 0:00:18]} Rxc2 {[%emt 0:01:24]} 22. Qxc2 {[%emt 0:00:08]} Qa6 {[%emt 0:04:35]} 23. Rc1 {[%emt 0:01:31]} Nb6 {[%emt 0:02:10]} 24. Qc6 {[%emt 0:14:35]} Nf8 {[%emt 0:00:50]} 25. Qd6 {[%emt 0:01:14]} Rc8 {[%emt 0:05:31]} 26. a3 {[%emt 0:01:42]} Rxc1 {[%emt 0:01:24]} 27. Nxc1 {[%emt 0:00:18]} Qc8 {[%emt 0:02:26]} 28. Nd3 {[%emt 0:00:16]} Nbd7 {[%emt 0:00:35]} 29. Nc5 {[%emt 0:07:04]} Kf7 {[%emt 0:01:08]} 30. Be2 {[%emt 0:00:39]} Nxc5 {[%emt 0:00:38]} 31. dxc5 {[%emt 0:00:28]} e5 {[%emt 0:00:54]} 32. Qxd5+ {[%emt 0:01:08]} Qe6 {[%emt 0:00:35]} 33. Qb7+ {[%emt 0:00:28]} Qd7 {[%emt 0:00:32]} 34. c6 {[%emt 0:02:04]} Qxb7 {[%emt 0:00:22]} 35. cxb7 {[%emt 0:00:09]} Nd7 {[%emt 0:00:04]} 36. Bg5 {[%emt 0:01:28]} Bf8 {[%emt 0:01:02]} 37. Bxb5 {[%emt 0:00:15]} Nb8 {[%emt 0:00:11]} 38. Bc4+ {[%emt 0:03:05]} Ke8 {[%emt 0:00:20]} 39. b4 {[%emt 0:00:42]} Bd6 {[%emt 0:00:28]} 40. Kf1 {[%emt 0:01:57]} Nc6 {[%emt 0:00:34]} 41. Ke2 {[%emt 0:30:56]} Ne7 {[%emt 0:30:59]} 42. e4 {[%emt 0:06:26]} fxe4 {[%emt 0:00:24]} 43. Be3 {[%emt 0:00:07]} Bb8 {[%emt 0:00:10]} 44. Bc5 {[%emt 0:00:32]} Nf5 {[%emt 0:00:25]} 45. Bd5 {[%emt 0:00:52]} e3 {[%emt 0:00:10]} 46. Be4 {[%emt 0:01:04]} exf2 {[%emt 0:00:38]} 47. Kxf2 {[%emt 0:00:06]} Kd7 {[%emt 0:00:20]} 48. a4 {[%emt 0:01:31]} a6 {[%emt 0:00:45]} 49. Bd3 {[%emt 0:00:20]} a5 {[%emt 0:00:19]} 50. Be4 {[%emt 0:02:03]} axb4 {[%emt 0:00:20]} 51. Bxb4 {[%emt 0:00:13]} Ba7+ {[%emt 0:00:03]} 52. Kg2 {[%emt 0:00:43]} Kc7 {[%emt 0:00:10]} 53. Bc3 {[%emt 0:00:33]} Kd6 {[%emt 0:00:49]} 54. a5 {[%emt 0:00:49]} Ne3+ {[%emt 0:00:36]} 55. Kf3 {[%emt 0:00:12]} Nf5 {[%emt 0:00:59]} 56. a6 {[%emt 0:01:11]} Ke6 {[%emt 0:00:52]} 57. Ba5 {[%emt 0:00:29]} Kd6 {[%emt 0:00:45]} 58. Bb6 {[%emt 0:02:00]} Nd4+ {[%emt 0:00:39]} 59. Kg2 {[%emt 0:00:09]} Bxb6 {[%emt 0:00:33]} 60. b8=Q+ {[%emt 0:00:09]} Bc7 {[%emt 0:00:04]} 1-0

[Event "55th Rubinstein Memorial-C 2019"]
[Site "Polanica-Zdroj"]
[Date "2019.08.24"]
[Round "8.8"]
[White "Rakita, Efim"]
[Black "Musial, Igor"]
[Result "1/2-1/2"]
[ECO "B56"]
[WhiteElo "1960"]
[BlackElo "1717"]
[Annotator "NA"]
[PlyCount "96"]
[EventDate "2019.08.17"]
[EventType "swiss"]
[EventCountry "POL"]
[SourceTitle "playchess.com"]
[Source "ChessBase"]
[SourceQuality "1"]
[TimeControl "40/5400+30:1800+30"]

1. e4 {[%emt 0:00:00]} c5 {[%emt 0:00:00]} 2. Nf3 {[%emt 0:00:00]} d6 {[%emt 0:00:00]} 3. d4 {[%emt 0:00:17]} cxd4 {[%emt 0:00:21]} 4. Nxd4 {[%emt 0:00:08]} Nf6 {[%emt 0:00:06]} 5. Nc3 {[%emt 0:00:13]} Nc6 {[%emt 0:00:08]} 6. Be3 {[%emt 0:02:04]} e5 {[%emt 0:00:19]} 7. Nde2 {[%emt 0:01:28]} Be6 {[%emt 0:01:19]} 8. Ng3 {[%emt 0:00:26]} d5 {[%emt 0:09:51]} 9. exd5 {[%emt 0:04:50]} Nxd5 {[%emt 0:00:13]} 10. Bd2 {[%emt 0:02:55]} Be7 {[%emt 0:11:31]} 11. Bd3 $17 {[%emt 0:00:45]} O-O {[%emt 0:02:45]} 12. Nf5 {[%emt 0:08:14]} Nxc3 {[%emt 0:12:42]} 13. Nxe7+ {[%emt 0:04:37]} Qxe7 {[%emt 0:00:18]} 14. Bxc3 {[%emt 0:00:59]} e4 {[%emt 0:08:03]} 15. Bb5 {[%emt 0:01:55]} Qg5 {[%emt 0:02:22]} 16. Qe2 {[%emt 0:03:12]} Bg4 {[%emt 0:12:16]} 17. Qf1 {[%emt 0:05:03]} Rad8 {[%emt 0:05:09]} 18. Bxc6 {[%emt 0:05:30]} bxc6 {[%emt 0:00:05]} 19. h3 {[%emt 0:00:17]} Bh5 {[%emt 0:02:08]} 20. g4 {[%emt 0:00:37]} Bg6 {[%emt 0:00:18]} 21. Qe2 {[%emt 0:00:46]} e3 {[%emt 0:05:29]} 22. O-O {[%emt 0:04:24]} exf2+ {[%emt 0:03:02]} 23. Qxf2 {[%emt 0:03:02]} h5 {[%emt 0:02:31]} 24. Qf4 {[%emt 0:01:22]} Qxf4 {[%emt 0:03:53]} 25. Rxf4 {[%emt 0:00:02]} hxg4 {[%emt 0:00:16]} 26. Rxg4 {[%emt 0:00:29]} Rfe8 {[%emt 0:01:53]} 27. Kf2 {[%emt 0:00:17]} Re4 {[%emt 0:03:37]} 28. Rag1 {[%emt 0:00:20]} Rxg4 {[%emt 0:02:02]} 29. Rxg4 {[%emt 0:00:02]} Re8 {[%emt 0:01:07]} 30. Bd4 {[%emt 0:02:04]} Re4 {[%emt 0:01:37]} 31. Bxa7 {[%emt 0:00:23]} Rxg4 {[%emt 0:00:06]} 32. hxg4 {[%emt 0:00:05]} Bxc2 {[%emt 0:00:05]} 33. Ke3 {[%emt 0:00:26]} f5 {[%emt 0:02:46]} 34. g5 {[%emt 0:00:33]} Kf7 {[%emt 0:00:39]} 35. Bb8 {[%emt 0:02:32]} Ke6 {[%emt 0:04:13]} 36. Kd4 {[%emt 0:00:39]} Kd7 {[%emt 0:01:16]} 37. Ke5 {[%emt 0:02:20]} Bd3 {[%emt 0:01:12]} 38. a4 {[%emt 0:00:18]} Kc8 {[%emt 0:01:02]} 39. Bd6 {[%emt 0:00:20]} Kb7 {[%emt 0:00:22]} 40. Bf8 {[%emt 0:01:08]} g6 {[%emt 0:00:22]} 41. Bd6 {[%emt 0:31:04]} f4 {[%emt 0:30:56]} 42. Kxf4 {[%emt 0:00:15]} Bc2 {[%emt 0:00:36]} 43. a5 {[%emt 0:00:02]} Ka6 {[%emt 0:00:46]} 44. b4 {[%emt 0:00:06]} Kb7 {[%emt 0:00:42]} 45. Ke5 {[%emt 0:00:15]} Bd3 {[%emt 0:00:13]} 46. Kd4 {[%emt 0:00:22]} Bf5 {[%emt 0:00:39]} 47. Bc5 {[%emt 0:00:59]} Bb1 {[%emt 0:00:26]} 48. Ke5 {[%emt 0:00:05]} Bd3 {[%emt 0:00:22] Ke4} 1/2-1/2